Cogmind - Beta 15 @@@ ROGUE MODE // 2025.08.30 @ 22:20:06 Player: Petvaria Result: Self-destructed Performance ------------- Evolutions (9) 4500 Regions Visited (24) 4800 Robots Destroyed (84) 420 Value Destroyed (2677) 2677 Prototype IDs (42) 840 Alien Tech Used (1) 200 Bonus (1453) 1453 TOTAL SCORE: 14890 Bonus ------- High Alert Combat Kills 22 Follower Combat Kills 131 Entered Garrisons 200 Used RIF Installer 500 Aligned with FarCom 300 Met Zhirov 300 Cogmind --------- Core Integrity 295/1600 Matter 300/300 Energy 100/100 System Corruption 6% Temperature Cool (0) Movement Core (50) Location -1/Access Parts ------- > --- POWER (2) -------- (None) > --- PROPULSION (9) --- (None) > --- UTILITY (12) ----- (None) > --- WEAPON (2) ------- (None) > --- INVENTORY (5) ---- Light Neutrino Core Light Particle Reactor Light Quantum Reactor Improved Gyrokinetic Inverter Advanced Reaction Control System Peak State ------------ > --- POWER ------------ Backup Power VII Heavy Antimatter Reactor > --- PROPULSION ------- Biomechanical Wings Biomechanical Wings Biomechanical Wings Biomechanical Wings Cooled Nuclear Pulse Thruster Cooled Nuclear Pulse Thruster Cooled Nuclear Pulse Thruster > --- UTILITY ---------- Medium Storage Unit Improved Signal Interpreter Layered Light Armor Plating Hacking Suite Hacking Suite Hacking Suite Hacking Suite Hacking Suite Advanced Hacking Suite Advanced System Shield > --- WEAPON ----------- Powered Hammer > --- INVENTORY -------- Light Neutrino Core Light Particle Reactor Light Particle Reactor Nuclear Pulse Array Impulse Thruster Impulse Thruster Array Scythe [Rating: 105] Favorites ----------- Power Light Nuclear Core Engine Light Ion Engine Power Core Light Nuclear Core Reactor Heavy Antimatter Reactor Propulsion Light Treads Treads Light Treads Wheel Wheel Flight Unit Biomechanical Wings Utility Hacking Suite Device Improved Sensor Array Storage Large Storage Unit Processor Improved Signal Interpreter Hackware Hacking Suite Protection Light Armor Plating Weapon Heavy Assault Rifle Energy Gun Medium Laser Ballistic Gun Heavy Assault Rifle Ballistic Cannon Flak Cannon Impact Weapon Powered Hammer Slashing Weapon Scythe Special Melee Weapon Improved Datajack Build | -11 -10 -10 -10 -9 -8 -8 -8 -7 -7 -7 -7 -5 -5 -5 -5 -4 -4 -4 -4 -4 -3 -3 -2 -1 ------- Run | Yrd Mat Min Exi Min Mat Gar Mat Fac Sto Rec Scr Fac Upp Upp War Pro Fac Upp Upp Zhi Pro Res Res Acc Slots Evolved 18 | . . . . . 4 . . 2 . . . 4 . . . . 2 . . . . 2 2 2 Power 1 | . . . . . . . . . . . . . . . . . . . . . . 1 . . Propulsion 7 | . . . . . 2 . . . . . . 1 . . . . 1 . . . . . 1 2 Utility 10 | . . . . . 2 . . 2 . . . 3 . . . . 1 . . . . 1 1 . Weapon . | . . . . . . . . . . . . . . . . . . . . . . . . . Parts Attached 117 | 6 6 2 1 1 34 11 3 7 4 . 3 16 2 . . . 5 1 . 5 . 4 5 1 Power 15 | 1 1 . . . 5 1 . 1 1 . . . 1 . . . 2 . . 1 . . 1 . Engine 4 | 1 1 . . . . 1 . . . . . . 1 . . . . . . . . . . . Core 8 | . . . . . 5 . . 1 1 . . . . . . . 1 . . . . . . . Reactor 3 | . . . . . . . . . . . . . . . . . 1 . . 1 . . 1 . Propulsion 43 | 2 . . 1 . 12 4 2 . 2 . 2 8 . . . . 1 . . 3 . 2 4 . Treads 23 | 2 . . . . 11 4 2 . 2 . 2 . . . . . . . . . . . . . Leg . | . . . . . . . . . . . . . . . . . . . . . . . . . Wheel 2 | . . . 1 . 1 . . . . . . . . . . . . . . . . . . . Hover . | . . . . . . . . . . . . . . . . . . . . . . . . . Flight 18 | . . . . . . . . . . . . 8 . . . . 1 . . 3 . 2 4 . Utility 37 | 1 2 2 . . 12 1 . 4 . . 1 7 1 . . . 2 1 . 1 . 1 . 1 Device 5 | . . 1 . . . . . . . . . 1 1 . . . 1 . . 1 . . . . Storage 3 | 1 1 . . . . . . . . . . 1 . . . . . . . . . . . . Processor 1 | . . . . . . . . . . . . 1 . . . . . . . . . . . . Hackware 10 | . . . . . 2 . . 1 . . . 3 . . . . 1 1 . . . 1 . 1 Protection 18 | . 1 1 . . 10 1 . 3 . . 1 1 . . . . . . . . . . . . Artifact . | . . . . . . . . . . . . . . . . . . . . . . . . . Weapon 22 | 2 3 . . 1 5 5 1 2 1 . . 1 . . . . . . . . . 1 . . Energy Gun 4 | 2 . . . . 1 1 . . . . . . . . . . . . . . . . . . Energy Cannon . | . . . . . . . . . . . . . . . . . . . . . . . . . Ballistic Gun 11 | . 1 . . 1 4 3 1 1 . . . . . . . . . . . . . . . . Ballistic Cannon 4 | . 2 . . . . . . 1 1 . . . . . . . . . . . . . . . Launcher . | . . . . . . . . . . . . . . . . . . . . . . . . . Special Weapon . | . . . . . . . . . . . . . . . . . . . . . . . . . Impact Weapon 1 | . . . . . . . . . . . . . . . . . . . . . . 1 . . Slashing Weapon 1 | . . . . . . 1 . . . . . . . . . . . . . . . . . . Piercing Weapon . | . . . . . . . . . . . . . . . . . . . . . . . . . Special Melee Weapon 1 | . . . . . . . . . . . . 1 . . . . . . . . . . . . Unidentified Prototypes 9 | . . 1 . . . . . . 1 . . 1 . . . . 1 . . 4 . . 1 . Parts Lost 52 | . 1 . . . 10 4 . 2 4 . . . 1 . . . . . . . . 5 20 5 Power 8 | . 1 . . . 1 1 . . 1 . . . 1 . . . . . . . . . 3 . Propulsion 18 | . . . . . 2 . . . 3 . . . . . . . . . . . . 2 10 1 Utility 22 | . . . . . 6 3 . 2 . . . . . . . . . . . . . 2 6 3 Weapon 4 | . . . . . 1 . . . . . . . . . . . . . . . . 1 1 1 Highest Loss Streak 9 | . 1 . . . 4 3 . 1 4 . . . 1 . . . . . . . . 3 9 2 To Critical Strikes . | . . . . . . . . . . . . . . . . . . . . . . . . . Average Backups 12 | 2 7 9 14 13 13 14 14 14 14 15 15 9 8 8 8 8 8 9 9 9 9 7 5 4 Power . | . . . . . . . . . 1 1 1 1 . . . . . 1 1 1 1 1 2 3 Propulsion 4 | 1 2 2 1 1 1 4 6 6 6 7 8 4 5 5 5 5 5 5 5 5 5 4 1 . Utility 3 | . 1 3 6 6 6 4 3 3 3 3 3 3 3 3 3 3 3 3 3 3 3 1 . . Weapon 2 | . 3 4 6 6 4 3 4 4 3 2 1 . . . . . . . . . . . 1 . Tool/Special . | . . . . . . . . . . . . . . . . . . . . . . . . . Unused Backups 10 | . . . . 1 3 . . 1 . . . 1 . . . . . . . . . . . 4 Power 2 | . . . . . . . . . . . . . . . . . . . . . . . . 2 Propulsion 2 | . . . . . . . . . . . . 1 . . . . . . . . . . . 1 Utility 3 | . . . . . 1 . . 1 . . . . . . . . . . . . . . . 1 Weapon 3 | . . . . 1 2 . . . . . . . . . . . . . . . . . . . Tool/Special . | . . . . . . . . . . . . . . . . . . . . . . . . . Average Slot Usage (%) 93 | . 91 99 100 100 96 98 100 97 97 100 100 92 100 100 100 100 93 94 94 97 100 90 75 23 Engine 4 | . 13 14 14 14 . 3 9 5 . . . . 1 5 5 5 4 . . . . . . . Core 3 | . . . . . 8 5 . 1 5 7 7 5 3 . . . . 5 5 1 . . 2 . Treads 21 | . 26 28 22 14 33 35 36 30 28 30 30 2 . . . . . . . . . . . . Wheel 1 | . . . 5 14 2 . . . . . . . . . . . . . . . . . . . Flight 6 | . . . . . . . . . . . . 25 29 29 29 29 26 26 26 29 31 28 25 3 Storage 7 | . 14 14 14 14 9 9 9 7 7 7 7 5 5 5 5 5 5 5 5 5 5 4 3 . Processor 1 | . . . . . . . . . . . . 2 5 5 5 5 5 5 5 5 5 4 4 3 Hackware 12 | . . . . . . 9 9 12 15 15 15 25 29 29 29 29 30 31 31 31 31 33 27 12 Protection 15 | . 8 13 14 14 26 17 18 23 23 23 23 6 5 5 5 5 5 5 5 3 5 1 2 . Energy Gun 1 | . 10 . . . 1 3 . . . . . . . . . . . . . . . . . . Ballistic Gun 7 | . 6 14 14 14 13 9 17 10 3 7 7 . . . . . . . . . . . . . Ballistic Cannon 3 | . 9 14 14 14 1 . . 3 7 7 7 . . . . . . . . . . . . . Slashing Weapon 1 | . . . . . . 4 . . 3 . . 4 5 5 5 5 5 5 5 5 5 2 . 3 Peak Build Rating 105 | 6 8 14 13 13 36 35 20 32 33 30 38 66 58 56 56 56 71 67 67 90 86 92 105 30 Average Rating 32 | 4 7 8 11 12 22 21 18 26 29 30 32 51 57 56 56 56 61 66 67 78 86 89 91 25 On Entrance 40 | . 6 8 11 13 13 33 18 18 31 30 30 38 58 56 56 56 56 67 67 67 86 86 87 24 Naked Turns 4 | . . . . . . . . . . . . . . . . . . . . . . . . 4 Heaviest Build 54 | 14 30 30 30 30 54 47 34 46 46 46 47 47 21 19 19 19 24 24 24 34 34 34 39 2 Greatest Support 93 | 40 40 40 40 10 80 80 80 80 80 80 93 93 25 25 25 25 25 25 25 35 35 36 43 6 Greatest Overweight (x) 4 | . . . 2 2 4 . . . 1 . . . . . . . . . . 1 . . . . Average Overweight (x) . | . . . 1 2 . . . . . . . . . . . . . . . . . . . . Largest Inventory Capacity 15 | 8 15 15 15 15 15 15 15 15 15 15 15 15 10 10 10 10 10 10 10 10 10 10 10 5 Average Capacity 13 | 7 10 15 15 15 15 15 15 15 15 15 15 10 10 10 10 10 10 10 10 10 10 10 9 5 Most Carried 15 | 4 9 14 15 15 15 15 15 15 15 15 15 15 10 9 9 9 10 10 10 10 10 10 10 5 Average Carried 12 | 2 7 9 14 14 14 14 14 14 14 14 15 9 9 9 9 9 9 10 10 10 9 8 7 4 Final Capacity 15 | 8 15 15 15 15 15 15 15 15 15 15 15 10 10 10 10 10 10 10 10 10 10 10 5 5 Final Carried 15 | 4 8 14 15 15 15 14 15 15 15 15 15 10 9 9 9 9 10 10 10 10 10 9 5 5 Class Distribution -------------------- 41% | Scavenger-Mutant 18% | Mutant 14% | Commander-Mutant 9% | Hacker-Sprinter 9% | Wizard-Sprinter 4% | Hacker-Mutant Dominant Class ---------------- Mutant | -10/Materials Mutant | -10/Mines Mutant | -10/Exiles Mutant | -9/Mines Scavenger-Mutant | -8/Materials Scavenger-Mutant | -8/Garrison Scavenger-Mutant | -8/Materials Scavenger-Mutant | -7/Factory Scavenger-Mutant | -7/Storage Commander-Mutant | -7/Recycling Commander-Mutant | -7/Scraptown Hacker-Sprinter | -5/Factory Hacker-Sprinter | -5/Upper Caves Hacker-Sprinter | -5/Upper Caves Hacker-Sprinter | -5/Warlord Hacker-Sprinter | -4/Proximity Caves Wizard-Scout | -4/Factory Wizard-Sprinter | -4/Upper Caves Wizard-Sprinter | -4/Upper Caves Wizard-Sprinter | -4/Zhirov Wizard-Sprinter | -3/Proximity Caves Wizard-Sprinter | -3/Research Wizard-Sprinter | -2/Research Hacker-Mutant | -1/Access Resources | -11 -10 -10 -10 -9 -8 -8 -8 -7 -7 -7 -7 -5 -5 -5 -5 -4 -4 -4 -4 -4 -3 -3 -2 -1 ----------- Run | Yrd Mat Min Exi Min Mat Gar Mat Fac Sto Rec Scr Fac Upp Upp War Pro Fac Upp Upp Zhi Pro Res Res Acc Matter Collected 2836 | 208 268 35 . 55 662 227 212 434 270 . 37 12 151 92 . . . 80 . 80 . . . 13 Remotely . | . . . . . . . . . . . . . . . . . . . . . . . . . Salvage Created 3506 | . 345 . . 82 1556 145 212 542 162 . . . . . . . . . . 462 . . . . Parts 203 | . 29 . . 12 82 12 21 28 14 . . . . . . . . . . 5 . . . . Haulers Intercepted 1 | . . . . . . . 1 . . . . . . . . . . . . . . . . . Recyclers Shooed 3 | . . . . . 2 . 1 . . . . . . . . . . . . . . . . . Parts Field Recycled . | . . . . . . . . . . . . . . . . . . . . . . . . . Retrieved Matter . | . . . . . . . . . . . . . . . . . . . . . . . . . Parts Self-Destructed 4 | . . . . . . . . . . . . . . . . . . . . 4 . . . . Prevented . | . . . . . . . . . . . . . . . . . . . . . . . . . Kills | -11 -10 -10 -10 -9 -8 -8 -8 -7 -7 -7 -7 -5 -5 -5 -5 -4 -4 -4 -4 -4 -3 -3 -2 -1 ------- Run | Yrd Mat Min Exi Min Mat Gar Mat Fac Sto Rec Scr Fac Upp Upp War Pro Fac Upp Upp Zhi Pro Res Res Acc Combat Hostiles Destroyed 69 | . 12 . . 4 30 5 3 9 6 . . . . . . . . . . . . . . . Guns 58 | . 7 . . 4 30 5 3 6 3 . . . . . . . . . . . . . . . Cannons 11 | . 5 . . . . . . 3 3 . . . . . . . . . . . . . . . Classes Destroyed 12 | . 4 . . 1 5 . 1 1 . . . . . . . . . . . . . . . . Worker 4 | . . . . 1 1 . 1 1 . . . . . . . . . . . . . . . . Builder 2 | . . . . . 2 . . . . . . . . . . . . . . . . . . . Hauler 1 | . . . . . . . 1 . . . . . . . . . . . . . . . . . Recycler 4 | . 1 . . . 1 . . 2 . . . . . . . . . . . . . . . . Operator 3 | . 1 . . . 1 . . 1 . . . . . . . . . . . . . . . . Watcher 1 | . . . . . 1 . . . . . . . . . . . . . . . . . . . Swarmer 20 | . 6 . . 4 5 2 . . 3 . . . . . . . . . . . . . . . Grunt 29 | . 6 . . . 16 2 . 4 1 . . . . . . . . . . . . . . . Brawler 3 | . . . . . 3 . . . . . . . . . . . . . . . . . . . Duelist 1 | . . . . . 1 . . . . . . . . . . . . . . . . . . . Sentry 13 | . . . . . 5 1 3 2 2 . . . . . . . . . . . . . . . Programmer 3 | . . . . . . . . 3 . . . . . . . . . . . . . . . . Best Kill Streak 13 | . 3 . . 4 13 2 2 3 6 . . . . . . . . . . . . . . . Combat Bots Only 9 | . 3 . . 4 9 2 2 2 6 . . . . . . . . . . . . . . . Max Kills in Single Turn 2 | . 1 . . 1 1 1 1 1 2 . . . . . . . . . . . . . . . Gunslinging . | . . . . . . . . . . . . . . . . . . . . . . . . . Exploded . | . . . . . . . . . . . . . . . . . . . . . . . . . Melee . | . . . . . . . . . . . . . . . . . . . . . . . . . Uniques/NPCs Destroyed . | . . . . . . . . . . . . . . . . . . . . . . . . . Combat | -11 -10 -10 -10 -9 -8 -8 -8 -7 -7 -7 -7 -5 -5 -5 -5 -4 -4 -4 -4 -4 -3 -3 -2 -1 -------- Run | Yrd Mat Min Exi Min Mat Gar Mat Fac Sto Rec Scr Fac Upp Upp War Pro Fac Upp Upp Zhi Pro Res Res Acc Hostile Shots Fired 979 | . 67 . . 18 197 108 17 75 71 . . 11 6 4 . . 3 2 34 . 17 26 162 161 Missed 350 | . 14 . . 8 43 26 3 21 28 . . 9 4 1 . . 1 2 11 . 14 15 78 72 Hits 629 | . 53 . . 10 154 82 14 54 43 . . 2 2 3 . . 2 . 23 . 3 11 84 89 Melee 7 | . . . . . 2 . . . . . . . . . . . . . . . . 5 . . Projectile 622 | . 53 . . 10 152 82 14 54 43 . . 2 2 3 . . 2 . 23 . 3 6 84 89 AOE 3 | . . . . . . . . . . . . . . . . . . . . . . 3 . . Critical Strikes 26 | . . . . 1 3 5 . 4 . . . . . . . . . . 3 . . 2 5 3 Part Disruptions 1 | . . . . . . . . 1 . . . . . . . . . . . . . . . . Damage Taken 9756 | . 515 . . 79 2320 1147 209 691 428 . . 30 54 44 . . 42 . 304 . 42 442 1968 1441 Core 2972 | . 98 . . . 170 142 59 109 61 . . . 21 16 . . 23 . 117 . 11 108 732 1305 Absorbed by Shields 24 | . . . . . . . . . . . . . . . . . . . . . . . 24 . Redirected to Shielding 332 | . 20 . . . . . . 167 37 . . 9 . 9 . . . . 26 . 6 58 . . Core Remaining (%) 73 | 100 . . . 60 . . 32 . . . 75 . . . . 96 . . . . 86 91 49 . Volleys Fired 278 | . 49 . . 7 99 46 22 39 16 . . . . . . . . . . . . . . . Largest 2 | . 2 . . 2 2 2 2 2 2 . . . . . . . . . . . . . . . Hottest 100 | . 100 . . 50 50 88 43 60 60 . . . . . . . . . . . . . . . Shots Fired 628 | . 92 . . 14 280 88 44 78 32 . . . . . . . . . . . . . . . Gun 538 | . 63 . . 7 274 88 44 46 16 . . . . . . . . . . . . . . . Cannon 90 | . 29 . . 7 6 . . 32 16 . . . . . . . . . . . . . . . Launcher . | . . . . . . . . . . . . . . . . . . . . . . . . . Special . | . . . . . . . . . . . . . . . . . . . . . . . . . Kinetic 476 | . 39 . . 14 196 73 44 78 32 . . . . . . . . . . . . . . . Thermal 152 | . 53 . . . 84 15 . . . . . . . . . . . . . . . . . . Explosive . | . . . . . . . . . . . . . . . . . . . . . . . . . Electromagnetic . | . . . . . . . . . . . . . . . . . . . . . . . . . Robot Hit Streak 18 | . 5 . . 3 15 9 15 18 12 . . . . . . . . . . . . . . . Robot Miss Streak 6 | . 3 . . 2 4 4 2 4 6 . . . . . . . . . . . . . . . Penetration Max . | . . . . . . . . . . . . . . . . . . . . . . . . . Secondary Targets 3 | . . . . . 2 1 . . . . . . . . . . . . . . . . . . Max Gunslinging Chain 1 | . . . . . 1 1 . . . . . . . . . . . . . . . . . . Autonomous 91 | . . . . . 84 7 . . . . . . . . . . . . . . . . . . Shots Hit Robots 460 | . 55 . . 5 218 63 29 58 21 . . 1 . . . . . . . 8 . 1 . 1 Core Hits 220 | . 22 . . 5 79 23 11 48 26 . . . . . . . . . . 5 . . . 1 Critical Kills . | . . . . . . . . . . . . . . . . . . . . . . . . . Critical Parts Destroyed 4 | . . . . . 1 1 2 . . . . . . . . . . . . . . . . . Critical Strikes 10 | . 6 . . . 1 1 2 . . . . . . . . . . . . . . . . . Burn 6 | . 6 . . . . . . . . . . . . . . . . . . . . . . . Destroy 4 | . . . . . 1 1 2 . . . . . . . . . . . . . . . . . Melee Attacks 157 | . . . . . . 15 4 4 4 . . 27 . . . . 9 1 2 8 . 33 19 31 Impact 27 | . . . . . . . . . . . . . . . . . . . . . . 8 19 . Slashing 129 | . . . . . . 15 4 4 4 . . 26 . . . . 9 1 2 8 . 25 . 31 Piercing . | . . . . . . . . . . . . . . . . . . . . . . . . . Sneak Attacks 1 | . . . . . . . . . . . . 1 . . . . . . . . . . . . Combat Hostiles . | . . . . . . . . . . . . . . . . . . . . . . . . . Follow-up Attacks . | . . . . . . . . . . . . . . . . . . . . . . . . . Damage Inflicted 7616 | . 736 . . 48 3636 661 345 1134 441 . . . . . . . . . . 517 . 51 . 47 Guns 5716 | . 422 . . 48 3562 661 341 546 136 . . . . . . . . . . . . . . . Cannons 1281 | . 314 . . . 74 . . 588 305 . . . . . . . . . . . . . . . Explosions . | . . . . . . . . . . . . . . . . . . . . . . . . . Melee 615 | . . . . . . . . . . . . . . . . . . . . 517 . 51 . 47 Ramming 4 | . . . . . . . 4 . . . . . . . . . . . . . . . . . Kinetic 4564 | . 362 . . 48 1783 455 341 1134 441 . . . . . . . . . . . . . . . Thermal 2433 | . 374 . . . 1853 206 . . . . . . . . . . . . . . . . . . Explosive . | . . . . . . . . . . . . . . . . . . . . . . . . . Electromagnetic . | . . . . . . . . . . . . . . . . . . . . . . . . . Impact . | . . . . . . . . . . . . . . . . . . . . . . . . . Slashing 615 | . . . . . . . . . . . . . . . . . . . . 517 . 51 . 47 Piercing . | . . . . . . . . . . . . . . . . . . . . . . . . . Highest Corruption 6 | . . . . . 2 2 3 1 1 1 . . . . . . . . . . . 2 6 6 Average Corruption 1 | . . . . . 2 2 2 1 1 1 . . . . . . . . . . . 1 4 3 Corruption Purged . | . . . . . . . . . . . . . . . . . . . . . . . . . Corruption Blocked . | . . . . . . . . . . . . . . . . . . . . . . . . . Effects 52 | . . . . . 7 27 7 1 2 3 . . . . . . . . . . . 2 3 . Message Errors 14 | . . . . . 1 8 . . . 2 . . . . . . . . . . . 1 2 . Matter Fused 9 | . . . . . 1 6 2 . . . . . . . . . . . . . . . . . Heat Flow Errors 7 | . . . . . 1 3 2 . 1 . . . . . . . . . . . . . . . Energy Discharges 3 | . . . . . . 1 . 1 . . . . . . . . . . . . . . 1 . Parts Rejected 1 | . . . . . . 1 . . . . . . . . . . . . . . . . . . Parts Fused 2 | . . . . . . 1 1 . . . . . . . . . . . . . . . . . Data Loss (minor) 8 | . . . . . 2 3 1 . 1 . . . . . . . . . . . . 1 . . Data Loss (major) 3 | . . . . . . 2 1 . . . . . . . . . . . . . . . . . Alerts 2 | . . . . . 1 . . . . 1 . . . . . . . . . . . . . . Weapon Failures 3 | . . . . . 1 2 . . . . . . . . . . . . . . . . . . Overload Shots . | . . . . . . . . . . . . . . . . . . . . . . . . . Overflow Damage 87 | . . . . . . . . 7 . . . . . . . . . . . 80 . . . . Projectiles 7 | . . . . . . . . 7 . . . . . . . . . . . . . . . . Explosions . | . . . . . . . . . . . . . . . . . . . . . . . . . Melee 80 | . . . . . . . . . . . . . . . . . . . . 80 . . . . Knockbacks 23 | . 7 . . . 2 . . 12 2 . . . . . . . . . . . . . . . Impact . | . . . . . . . . . . . . . . . . . . . . . . . . . Kinetic 22 | . 7 . . . 2 . . 12 1 . . . . . . . . . . . . . . . Secondary 1 | . . . . . . . . . 1 . . . . . . . . . . . . . . . Self-Inflicted Damage . | . . . . . . . . . . . . . . . . . . . . . . . . . Shots . | . . . . . . . . . . . . . . . . . . . . . . . . . Rammed . | . . . . . . . . . . . . . . . . . . . . . . . . . Targets Rammed 1 | . . . . . . . 1 . . . . . . . . . . . . . . . . . Kicked . | . . . . . . . . . . . . . . . . . . . . . . . . . Crushed 1 | . . . . . . . 1 . . . . . . . . . . . . . . . . . Highest Temperature 416 | . 168 . . 28 133 280 167 28 197 . . . . . . . . . 345 . . . 416 . Average Temperature 60 | . 47 . . 12 49 109 27 10 61 . . . . . . . . . 194 . . . 209 . Received Heat Transfer 2795 | . 198 . . . 1044 639 63 189 93 . . . 12 . . . 9 . 359 . . 18 135 36 Effects 2 | . . . . . . 2 . . . . . . . . . . . . . . . . . . Interference 2 | . . . . . . 2 . . . . . . . . . . . . . . . . . . Siege Activations . | . . . . . . . . . . . . . . . . . . . . . . . . . Martial Activations . | . . . . . . . . . . . . . . . . . . . . . . . . . Shielding Activations . | . . . . . . . . . . . . . . . . . . . . . . . . . Robots Disrupted . | . . . . . . . . . . . . . . . . . . . . . . . . . Combat Hostiles . | . . . . . . . . . . . . . . . . . . . . . . . . . Robots Corrupted . | . . . . . . . . . . . . . . . . . . . . . . . . . Combat Hostiles . | . . . . . . . . . . . . . . . . . . . . . . . . . Parts Fried . | . . . . . . . . . . . . . . . . . . . . . . . . . Impact Corruptions . | . . . . . . . . . . . . . . . . . . . . . . . . . Robots Melted . | . . . . . . . . . . . . . . . . . . . . . . . . . Combat Hostiles . | . . . . . . . . . . . . . . . . . . . . . . . . . Parts Melted 4 | . 2 . . . 2 . . . . . . . . . . . . . . . . . . . Heat Transferred 4112 | . 1554 . . . 2368 190 . . . . . . . . . . . . . . . . . . Parts Sabotaged . | . . . . . . . . . . . . . . . . . . . . . . . . . Parts Stolen . | . . . . . . . . . . . . . . . . . . . . . . . . . Parts Stripped . | . . . . . . . . . . . . . . . . . . . . . . . . . Power Chain Reactions . | . . . . . . . . . . . . . . . . . . . . . . . . . Alert | -11 -10 -10 -10 -9 -8 -8 -8 -7 -7 -7 -7 -5 -5 -5 -5 -4 -4 -4 -4 -4 -3 -3 -2 -1 ------- Run | Yrd Mat Min Exi Min Mat Gar Mat Fac Sto Rec Scr Fac Upp Upp War Pro Fac Upp Upp Zhi Pro Res Res Acc Maximum Alert Level 2 | . . . . . 2 2 1 . . . . . . . . . . . . . . . . . Low Security (%) 80 | 100 100 100 . 100 94 . 80 100 100 100 . 100 . . . . 100 . . . . 100 100 100 Level 1 11 | . . . . . 2 57 19 . . . . . . . . . . . . . . . . . Level 2 7 | . . . . . 3 42 . . . . . . . . . . . . . . . . . . Level 3 . | . . . . . . . . . . . . . . . . . . . . . . . . . Level 4 . | . . . . . . . . . . . . . . . . . . . . . . . . . Level 5 . | . . . . . . . . . . . . . . . . . . . . . . . . . High Security . | . . . . . . . . . . . . . . . . . . . . . . . . . Max Security . | . . . . . . . . . . . . . . . . . . . . . . . . . Peak Influence 563 | . 92 . . 80 426 563 274 62 111 33 . 173 . . . . 15 . . . . 69 146 97 Initial 274 | . . . . . . 266 274 8 21 13 . . . . . . . . . . . 33 . 69 Average 104 | . 40 . . 10 67 415 128 12 36 3 . 71 . . . . 1 . . . . 10 39 32 Influence Increases 4223 | . 335 . . 95 1063 337 107 269 181 38 . 485 30 150 . . 48 15 60 15 120 197 435 243 Destroy 0b10 Robot/C 1660 | . 240 . . 80 660 100 60 180 120 20 . 200 . . . . . . . . . . . . Destroy 0b10 Robot/NC 100 | . 10 . . 5 30 . 10 20 . . . 5 . . . . . . . 15 . 5 . . Destroy Leader 376 | . 40 . . 10 152 10 32 60 30 . . 40 . . . . . . . . . 2 . . Allied During Kill 27 | . . . . . 11 . . . . 13 . 3 . . . . . . . . . . . . Successful Hack 141 | . 14 . . . 12 12 . 4 . 5 . 4 . . . . . . . . . 36 6 48 Disable Machine 75 | . . . . . 30 . . . 30 . . 15 . . . . . . . . . . . . Anti-Garrison Action 100 | . . . . . . 100 . . . . . . . . . . . . . . . . . . Destroy Structure 304 | . 1 . . . 18 70 5 5 1 . . 38 . . . . 18 . . . . 64 54 30 Partial Spotted 210 | . . . . . . . . . . . . 60 . . . . . . . . . 60 90 . Lose Combat Pursuer 1230 | . 30 . . . 150 45 . . . . . 120 30 150 . . 30 15 60 . 120 30 285 165 Influence Decreases 4143 | . 335 . . 95 653 184 651 240 194 73 . 334 147 117 67 . 43 20 50 20 75 247 319 279 Entered New Map 706 | . . . . . . 144 289 11 27 22 . . 57 7 67 . . 3 . 10 5 17 . 47 Time Decay 2500 | . 325 . . 95 408 . 362 162 147 51 . 128 80 110 . . 43 17 50 10 70 150 129 163 Lost Part 403 | . 10 . . . 100 40 . 20 20 . . . 10 . . . . . . . . 18 182 3 Lost Ally 205 | . . . . . 57 . . . . . . 140 . . . . . . . . . . 8 . Purge Threat 329 | . . . . . 88 . . 47 . . . 66 . . . . . . . . . 62 . 66 Squads Dispatched 25 | . 2 1 . . 6 . . 3 2 . . 1 . . . . . . . . . 3 2 5 Investigation 4 | . 1 1 . . 1 . . . . . . . . . . . . . . . . . . 1 Extermination 7 | . . . . . . . . 2 . . . . . . . . . . . . . 1 2 2 Reinforcement 10 | . 1 . . . 2 . . 1 1 . . 1 . . . . . . . . . 2 . 2 Assault . | . . . . . . . . . . . . . . . . . . . . . . . . . Garrison 4 | . . . . . 3 . . . 1 . . . . . . . . . . . . . . . Intercept . | . . . . . . . . . . . . . . . . . . . . . . . . . Searches Triggered . | . . . . . . . . . . . . . . . . . . . . . . . . . Construction Impeded 1 | . . . . . 1 . . . . . . . . . . . . . . . . . . . Haulers Reinforced 1 | . . . . . . . . . 1 . . . . . . . . . . . . . . . Active Scanning Responses . | . . . . . . . . . . . . . . . . . . . . . . . . . Cargo Convoy Interrupts . | . . . . . . . . . . . . . . . . . . . . . . . . . Stealth | -11 -10 -10 -10 -9 -8 -8 -8 -7 -7 -7 -7 -5 -5 -5 -5 -4 -4 -4 -4 -4 -3 -3 -2 -1 --------- Run | Yrd Mat Min Exi Min Mat Gar Mat Fac Sto Rec Scr Fac Upp Upp War Pro Fac Upp Upp Zhi Pro Res Res Acc Distress Signals 19 | . 1 . . . 5 . 2 . 2 . . 1 . . . . 2 . . . . 2 2 2 Communications Jammed . | . . . . . . . . . . . . . . . . . . . . . . . . . Distress Signals . | . . . . . . . . . . . . . . . . . . . . . . . . . Times Spotted 246 | . 18 . . 4 55 9 10 18 8 1 . 14 2 10 . . 4 1 5 . 10 15 39 23 Peak Tracking Total 19 | . 5 . . 4 9 3 4 4 6 1 . 9 2 5 . . 6 1 4 . 5 9 19 12 Tactical Retreats 42 | . 2 . . . 10 1 . . . . . 4 1 2 . . 2 1 1 . 4 2 8 4 Traps | -11 -10 -10 -10 -9 -8 -8 -8 -7 -7 -7 -7 -5 -5 -5 -5 -4 -4 -4 -4 -4 -3 -3 -2 -1 ------- Run | Yrd Mat Min Exi Min Mat Gar Mat Fac Sto Rec Scr Fac Upp Upp War Pro Fac Upp Upp Zhi Pro Res Res Acc Traps Triggered 14 | . 3 . . . 2 1 1 . . . . 1 . . . . 1 . . . . 1 2 2 Indirectly . | . . . . . . . . . . . . . . . . . . . . . . . . . Trap Hack Attempts . | . . . . . . . . . . . . . . . . . . . . . . . . . Triggered . | . . . . . . . . . . . . . . . . . . . . . . . . . Disarmed . | . . . . . . . . . . . . . . . . . . . . . . . . . Reprogrammed . | . . . . . . . . . . . . . . . . . . . . . . . . . Reused . | . . . . . . . . . . . . . . . . . . . . . . . . . Traps Extracted . | . . . . . . . . . . . . . . . . . . . . . . . . . Installed . | . . . . . . . . . . . . . . . . . . . . . . . . . Triggered . | . . . . . . . . . . . . . . . . . . . . . . . . . Machines | -11 -10 -10 -10 -9 -8 -8 -8 -7 -7 -7 -7 -5 -5 -5 -5 -4 -4 -4 -4 -4 -3 -3 -2 -1 ---------- Run | Yrd Mat Min Exi Min Mat Gar Mat Fac Sto Rec Scr Fac Upp Upp War Pro Fac Upp Upp Zhi Pro Res Res Acc Machines Disabled 5 | . . . . . 2 . . . 2 . . 1 . . . . . . . . . . . . Max in Single Turn 1 | . . . . . 1 . . . 1 . . 1 . . . . . . . . . . . . Garrison Access 9 | . . . . . . . 1 1 1 . . 2 . . . . 1 . . . . 1 1 1 Machines Repaired . | . . . . . . . . . . . . . . . . . . . . . . . . . Machines Dismantled . | . . . . . . . . . . . . . . . . . . . . . . . . . Machines Sabotaged . | . . . . . . . . . . . . . . . . . . . . . . . . . Overloaded Fab Kills . | . . . . . . . . . . . . . . . . . . . . . . . . . Hacking | -11 -10 -10 -10 -9 -8 -8 -8 -7 -7 -7 -7 -5 -5 -5 -5 -4 -4 -4 -4 -4 -3 -3 -2 -1 --------- Run | Yrd Mat Min Exi Min Mat Gar Mat Fac Sto Rec Scr Fac Upp Upp War Pro Fac Upp Upp Zhi Pro Res Res Acc Machines Accessed 71 | . 3 2 2 . 7 2 2 5 5 2 . 8 . 1 . . 5 1 . 4 . 7 8 7 Terminals 44 | . 3 . . . 6 2 1 4 4 2 . 5 . . . . 2 . . . . 6 3 6 Fabricators 6 | . . . . . . . . . . . . 1 . . . . 2 . . . . . 3 . Repair Stations 1 | . . . . . . . . . . . . . . . . . . . . . . . 1 . Recycling Units . | . . . . . . . . . . . . . . . . . . . . . . . . . Scanalyzers . | . . . . . . . . . . . . . . . . . . . . . . . . . Garrison Access 10 | . . . . . 1 . 1 1 1 . . 2 . . . . 1 . . . . 1 1 1 Total Hacks 147 | . 6 2 2 . 15 2 4 12 6 3 . 17 . 1 . . 12 1 . 16 . 16 17 15 Successful 88 | . 2 2 2 . 5 1 1 5 3 1 . 11 . 1 . . 5 1 . 16 . 13 12 7 Failed 59 | . 4 . . . 10 1 3 7 3 2 . 6 . . . . 7 . . . . 3 5 8 Catastrophic 11 | . 1 . . . 4 . . . . 2 . . . . . . . . . . . . 1 3 Database Lockouts . | . . . . . . . . . . . . . . . . . . . . . . . . . Manual 78 | . 6 . 1 . 9 . 3 6 4 3 . 11 . . . . 6 . . . . 13 11 5 Terminals 97 | . 6 . . . 11 2 3 11 5 3 . 13 . . . . 6 . . . . 15 8 14 Fabricators 14 | . . . . . . . . . . . . 2 . . . . 5 . . . . . 7 . Repair Stations 1 | . . . . . . . . . . . . . . . . . . . . . . . 1 . Recycling Units . | . . . . . . . . . . . . . . . . . . . . . . . . . Scanalyzers . | . . . . . . . . . . . . . . . . . . . . . . . . . Garrison Access 13 | . . . . . 4 . 1 1 1 . . 2 . . . . 1 . . . . 1 1 1 Terminal Hacks 57 | . 1 2 2 . 2 1 . 3 2 1 . 7 . 1 . . 1 1 . 16 . 8 3 6 Record 6 | . . . 1 . . . . . . . . . . . . . . . . 4 . . . 1 Part Schematic 4 | . . . . . . . . . . . . . . . . . . . . 4 . . . . Robot Analysis 4 | . . . . . . . . . . . . . . . . . . . . 4 . . . . Prototype ID Bank 4 | . . . . . . . . . . . . . . . . . . . . 4 . . . . Open Door 7 | . . 2 . . . . . . 2 . . . . 1 . . . 1 . . . . . 1 Level Access Points 2 | . . . . . . . . . . . . . . . . . . . . . . 1 1 . Branch Access Points 4 | . 1 . . . . . . 1 . . . 1 . . . . . . . . . . . 1 Emergency Access Points 1 | . . . . . . 1 . . . . . . . . . . . . . . . . . . Terminal Index 2 | . . . . . . . . . . . . 1 . . . . . . . . . 1 . . Unreport Threat 7 | . . . . . 1 . . 1 . 1 . 1 . . . . . . . . . 2 . 1 Locate Traps 2 | . . . . . . . . . . . . 1 . . . . . . . . . 1 . . Recall Extermination 1 | . . . . . . . . . . . . . . . . . . . . . . . 1 . Recall Reinforcements 1 | . . . . . . . . . . . . . . . . . . . . . . 1 . . Hauler Manifests 2 | . . . . . . . . . . . . 1 . . . . . . . . . . . 1 Registered Components 6 | . . . . . . . . 1 . . . 1 . . . . 1 . . . . 1 1 1 Registered Prototypes 2 | . . . . . . . . . . . . 1 . . . . . . . . . 1 . . Zone Layout 1 | . . . . . 1 . . . . . . . . . . . . . . . . . . . Proto ID Catalog 1 | . . . 1 . . . . . . . . . . . . . . . . . . . . . Fabricator Hacks 4 | . . . . . . . . . . . . . . . . . 1 . . . . . 3 . Network Status 2 | . . . . . . . . . . . . . . . . . 1 . . . . . 1 . Build 2 | . . . . . . . . . . . . . . . . . . . . . . . 2 . Repair Station Hacks 1 | . . . . . . . . . . . . . . . . . . . . . . . 1 . Refit 1 | . . . . . . . . . . . . . . . . . . . . . . . 1 . Recycling Unit Hacks . | . . . . . . . . . . . . . . . . . . . . . . . . . Scanalyzer . | . . . . . . . . . . . . . . . . . . . . . . . . . Garrison Access Hacks 10 | . . . . . 1 . 1 1 1 . . 2 . . . . 1 . . . . 1 1 1 Unlock Access 1 | . . . . . 1 . . . . . . . . . . . . . . . . . . . Seal Access 9 | . . . . . . . 1 1 1 . . 2 . . . . 1 . . . . 1 1 1 Unauthorized Hacks 16 | . 1 . . . 2 . . 1 . . . 2 . . . . 2 . . . . 4 4 . Terminals 11 | . 1 . . . 2 . . 1 . . . 1 . . . . 1 . . . . 4 1 . Assimilate 3 | . . . . . . . . . . . . . . . . . . . . . . 2 1 . Botnet 4 | . . . . . . . . 1 . . . . . . . . 1 . . . . 2 . . Operators 4 | . 1 . . . 2 . . . . . . 1 . . . . . . . . . . . . Fabricators 5 | . . . . . . . . . . . . 1 . . . . 1 . . . . . 3 . Fabnet 5 | . . . . . . . . . . . . 1 . . . . 1 . . . . . 3 . Repair Stations . | . . . . . . . . . . . . . . . . . . . . . . . . . Recycling Units . | . . . . . . . . . . . . . . . . . . . . . . . . . Scanalyzers . | . . . . . . . . . . . . . . . . . . . . . . . . . Garrison Access . | . . . . . . . . . . . . . . . . . . . . . . . . . Data Cores Recovered 1 | . . . . . . . . . . . . 1 . . . . . . . . . . . . Used 1 | . . . . . . . . . . . . 1 . . . . . . . . . . . . Hacking Detections 44 | . 2 . . . 6 2 1 4 5 1 . 4 . . . . 4 . . . . 3 6 6 Full Trace Events 2 | . . . . . 1 . . . . . . . . . . . . . . . . . . 1 Feedback Events 1 | . . . . . 1 . . . . . . . . . . . . . . . . . . . Hackware Fried 1 | . . . . . 1 . . . . . . . . . . . . . . . . . . . Feedback Blocked . | . . . . . . . . . . . . . . . . . . . . . . . . . Robot Schematics Acquired . | . . . . . . . . . . . . . . . . . . . . . . . . . Robots Built . | . . . . . . . . . . . . . . . . . . . . . . . . . Authchips . | . . . . . . . . . . . . . . . . . . . . . . . . . Time . | . . . . . . . . . . . . . . . . . . . . . . . . . Total Robot Build Rating . | . . . . . . . . . . . . . . . . . . . . . . . . . Part Schematics Acquired 4 | . . . . . . . . . . . . . . . . . . . . 4 . . . . Parts Built 3 | . . . . . . . . . . . . . . . . . . . . . . . 3 . Authchips . | . . . . . . . . . . . . . . . . . . . . . . . . . Time 268 | . . . . . . . . . . . . . . . . . . . . . . . 268 . Total Part Build Rating 27 | . . . . . . . . . . . . . . . . . . . . . . . 27 . Parts Repaired . | . . . . . . . . . . . . . . . . . . . . . . . . . Time . | . . . . . . . . . . . . . . . . . . . . . . . . . Parts Recycled . | . . . . . . . . . . . . . . . . . . . . . . . . . Recycled Matter . | . . . . . . . . . . . . . . . . . . . . . . . . . Retrieved Matter . | . . . . . . . . . . . . . . . . . . . . . . . . . Retrieved Components . | . . . . . . . . . . . . . . . . . . . . . . . . . Parts Scanalyzed . | . . . . . . . . . . . . . . . . . . . . . . . . . Part Schematics Acquired . | . . . . . . . . . . . . . . . . . . . . . . . . . Parts Damaged . | . . . . . . . . . . . . . . . . . . . . . . . . . Bothacking | -11 -10 -10 -10 -9 -8 -8 -8 -7 -7 -7 -7 -5 -5 -5 -5 -4 -4 -4 -4 -4 -3 -3 -2 -1 ------------ Run | Yrd Mat Min Exi Min Mat Gar Mat Fac Sto Rec Scr Fac Upp Upp War Pro Fac Upp Upp Zhi Pro Res Res Acc Used RIF Installer 1 | . . . . . . 1 . . . . . . . . . . . . . . . . . . Robots Hacked 6 | . . . . . . . . . . . . 1 . . . . . 1 . . 1 3 . . Non-combat 1 | . . . . . . . . . . . . 1 . . . . . . . . . . . . Combat 5 | . . . . . . . . . . . . . . . . . . 1 . . 1 3 . . Robot Hacks Applied 1 | . . . . . . . . . . . . 1 . . . . . . . . . . . . find_chute 1 | . . . . . . . . . . . . 1 . . . . . . . . . . . . Relay Couplers Released . | . . . . . . . . . . . . . . . . . . . . . . . . . Fabnet Peak Effective % 6 | . . . . . . . . . . . . . . . . 3 3 3 3 3 4 4 1 6 Autooverrided 5 | . . . . . . . . . . . . . . . . . . 1 . . 1 3 . . Robots Rewired . | . . . . . . . . . . . . . . . . . . . . . . . . . Allies Hacked . | . . . . . . . . . . . . . . . . . . . . . . . . . Hacks Repelled . | . . . . . . . . . . . . . . . . . . . . . . . . . Allies | -11 -10 -10 -10 -9 -8 -8 -8 -7 -7 -7 -7 -5 -5 -5 -5 -4 -4 -4 -4 -4 -3 -3 -2 -1 -------- Run | Yrd Mat Min Exi Min Mat Gar Mat Fac Sto Rec Scr Fac Upp Upp War Pro Fac Upp Upp Zhi Pro Res Res Acc Total Allies 19 | . . . . 3 . . . . 10 . . . . . . . . 1 . . 1 3 1 . Largest Group 10 | . . . . 3 3 . . . 10 10 9 9 . . . . . 1 . . 1 1 1 . Highest-Rated Group 173 | . . . . 40 40 . . . 173 173 157 157 . . . . . 54 . . 30 82 45 . Highest-Rated Ally 82 | . . . . 16 16 . . . 29 29 29 29 . . . . . 54 . . 30 82 45 . Total Orders . | . . . . . . . . . . . . . . . . . . . . . . . . . Ally Attacks 122 | . . . . . 31 . . . . 14 . 73 . . . . . . . . 2 2 . . Total Damage 1451 | . . . . . 313 . . . . 166 . 924 . . . . . . . . . 48 . . Kills 16 | . . . . . 3 . . . . 1 . 11 . . . . . . . . . 1 . . Allies Corrupted . | . . . . . . . . . . . . . . . . . . . . . . . . . Allies Melted . | . . . . . . . . . . . . . . . . . . . . . . . . . Intel | -11 -10 -10 -10 -9 -8 -8 -8 -7 -7 -7 -7 -5 -5 -5 -5 -4 -4 -4 -4 -4 -3 -3 -2 -1 ------- Run | Yrd Mat Min Exi Min Mat Gar Mat Fac Sto Rec Scr Fac Upp Upp War Pro Fac Upp Upp Zhi Pro Res Res Acc Active Infowar (turns) 1777 | . . . . . . . . . . . . . 167 662 10 265 21 239 193 75 144 1 . . Sensors 1777 | . . . . . . . . . . . . . 167 662 10 265 21 239 193 75 144 1 . . Robot Analysis Total 4 | . . . . . . . . . . . . . . . . . . . . 4 . . . . Derelict Logs Recovered 7 | . . 1 . 1 . . . . . . . . 1 1 . 1 . 1 1 . . . . . Drone Launches . | . . . . . . . . . . . . . . . . . . . . . . . . . Drone Recoveries . | . . . . . . . . . . . . . . . . . . . . . . . . . Exploration | -11 -10 -10 -10 -9 -8 -8 -8 -7 -7 -7 -7 -5 -5 -5 -5 -4 -4 -4 -4 -4 -3 -3 -2 -1 ------------- Run | Yrd Mat Min Exi Min Mat Gar Mat Fac Sto Rec Scr Fac Upp Upp War Pro Fac Upp Upp Zhi Pro Res Res Acc Turns Passed 13320 | 87 771 316 320 756 1653 1617 833 1129 425 342 1512 323 167 662 10 265 240 239 193 75 144 353 332 556 Spaces Moved 12814 | 61 352 182 236 623 678 757 353 530 189 202 925 724 415 657 39 358 748 681 607 165 421 896 971 1044 Core 262 | 23 . . . . . . . . . . . . . . . . . . . . . . . 239 Treads 4203 | 38 352 182 114 . 550 757 353 530 189 202 925 11 . . . . . . . . . . . . Legs . | . . . . . . . . . . . . . . . . . . . . . . . . . Wheels 873 | . . . 122 623 128 . . . . . . . . . . . . . . . . . . . Hover . | . . . . . . . . . . . . . . . . . . . . . . . . . Flight 7476 | . . . . . . . . . . . . 713 415 657 39 358 748 681 607 165 421 896 971 805 Fastest Speed 19 | 50 160 160 110 110 95 162 162 162 160 160 160 24 25 25 25 25 25 25 25 21 21 21 19 40 Average Speed 76 | 118 160 160 134 110 155 162 162 162 162 160 160 26 25 25 25 25 25 25 25 24 21 21 22 42 Slowest Speed 240 | 160 160 160 160 110 162 162 162 163 240 160 160 160 25 25 25 25 25 25 25 96 21 22 40 50 Overloaded Moves . | . . . . . . . . . . . . . . . . . . . . . . . . . Propulsion Burnouts . | . . . . . . . . . . . . . . . . . . . . . . . . . Robots Hopped 88 | . . . . . . . . . . . . 11 1 . . . 8 . 7 . . 9 32 20 Potential Cave-ins 4 | . . . . . . . . . . . . 4 . . . . . . . . . . . . Cave-ins Triggered . | . . . . . . . . . . . . . . . . . . . . . . . . . Exploration Rate (%) 45 | 4 57 32 61 92 55 61 42 20 32 47 60 25 50 78 8 52 17 81 68 60 51 19 34 24 Regions Visited 24 Branch Regions 14 Pre-discovered Areas 9 | . . 1 1 2 . . . . . . . . . 1 . . . . 1 3 . . . . Known Exits Taken 15 | . 1 . . . 1 . . 1 . . . 1 1 1 1 1 1 1 1 1 1 1 1 . Unknown Exits Taken 8 | 1 . 1 1 1 . . 1 . 1 1 1 . . . . . . . . . . . . . Scrap Searched 18 | . . 1 . 2 . . . . . . 4 . 3 2 . 1 . 2 1 . 2 . . . Spaces Dug 105 | . . . . . . . 4 4 . . . 24 . . . . 9 1 2 . . 32 18 11 Terrain Destroyed 119 | . . . . . 14 . 4 4 . . . 24 . . . . 9 1 2 . . 32 18 11 Melee 105 | . . . . . . . 4 4 . . . 24 . . . . 9 1 2 . . 32 18 11 Projectile 14 | . . . . . 14 . . . . . . . . . . . . . . . . . . . AOE . | . . . . . . . . . . . . . . . . . . . . . . . . . Terrain Rammed . | . . . . . . . . . . . . . . . . . . . . . . . . . Walls Destroyed . | . . . . . . . . . . . . . . . . . . . . . . . . . Machines Disabled . | . . . . . . . . . . . . . . . . . . . . . . . . . Actions | -11 -10 -10 -10 -9 -8 -8 -8 -7 -7 -7 -7 -5 -5 -5 -5 -4 -4 -4 -4 -4 -3 -3 -2 -1 --------- Run | Yrd Mat Min Exi Min Mat Gar Mat Fac Sto Rec Scr Fac Upp Upp War Pro Fac Upp Upp Zhi Pro Res Res Acc Total 15513 | 76 468 207 240 683 1113 1050 569 717 268 221 960 809 475 1153 38 532 778 747 637 188 476 994 1023 1091 Wait 2005 | . 49 13 . 44 254 199 179 123 44 18 28 21 60 497 . 175 16 64 36 . 54 62 37 32 Move 12628 | 60 351 181 235 622 677 755 352 529 188 201 924 703 412 656 38 357 731 680 595 164 420 877 910 1010 Hop 73 | . . . . . . . . . . . . 9 1 . . . 8 . 4 . . 9 28 14 Pick Up 100 | 10 6 8 2 4 21 7 2 6 5 1 1 10 . . . . 3 . . 1 1 5 5 2 Fast Attach 27 | . 6 . . . 3 . . 2 2 . . 5 . . . . 2 1 . 6 . . . . Attach 73 | 6 2 2 . . 15 8 . 4 4 . . 13 1 . . . 2 . . . . 6 8 2 Detach 5 | . . . . . 1 . . . . . . 3 . . . . 1 . . . . . . . Swap 62 | . 2 1 1 1 17 16 5 5 2 . 3 3 1 . . . 3 . . 2 . . . . Drop 89 | . 3 2 2 5 26 4 4 5 3 1 4 15 . . . . 3 1 . 7 1 2 1 . Fire 278 | . 49 . . 7 99 46 22 39 16 . . . . . . . . . . . . . . . Melee 157 | . . . . . . 15 4 4 4 . . 27 . . . . 9 1 2 8 . 33 19 31 Ram . | . . . . . . . . . . . . . . . . . . . . . . . . . Kick . | . . . . . . . . . . . . . . . . . . . . . . . . . Crush 1 | . . . . . . . 1 . . . . . . . . . . . . . . . . . Escape Stasis 15 | . . . . . . . . . . . . . . . . . . . . . . . 15 . Rewire . | . . . . . . . . . . . . . . . . . . . . . . . . . Trap . | . . . . . . . . . . . . . . . . . . . . . . . . . Miscellaneous . | . . . . . . . . . . . . . . . . . . . . . . . . . Route ------- -11/Scrapyard -10/Materials (discovered 3 exits: [*Mat x2] / *Min) -10/Mines -10/Exiles -9/Mines -8/Materials (discovered 2 exits: *Fac / Gar) -8/Garrison -8/Materials -7/Factory (discovered 3 exits: *Sto / Low x2) -7/Storage -7/Recycling -7/Scraptown -5/Factory (discovered 5 exits: *Fac / *Upp x2 / *Ext x2) -5/Upper Caves -5/Upper Caves -5/Warlord -4/Proximity Caves -4/Factory -4/Upper Caves -4/Upper Caves -4/Zhirov -3/Proximity Caves -3/Research (discovered 4 exits: *Res x3 / Tes) -2/Research (discovered 3 exits: *Acc x3) -1/Access (discovered 1 exit: Com) History --------- Turn | Location | Event 11 | -11/Scrapyard | Discovered new exit (range 15) 88 | -11/Scrapyard | Entered Materials 320 | -10/Materials | Build established: Mutant 521 | -10/Materials | Discovered new exit (range 5) 660 | -10/Materials | Discovered new exit (range 10) 815 | -10/Materials | Identified exit to Mines 859 | -10/Materials | Entered Mines 928 | -10/Mines | Found the Drone Emporium 937 | -10/Mines | Found Prototype Device 938 | -10/Mines | Identified Thief Drone Bay 1075 | -10/Mines | Met a Derelict shopkeep closing up shop 1167 | -10/Mines | Deemed a non-threat by the Exiles lab entrance 1168 | -10/Mines | Discovered new exit (range 5) 1175 | -10/Mines | Entered Exiles 1214 | -10/Exiles | Met 8R-AWN 1241 | -10/Exiles | Met EX-HEX 1291 | -10/Exiles | Met EX-BIN 1310 | -10/Exiles | Aligned with FarCom system 1311 | -10/Exiles | Given EX-Vault access code 1348 | -10/Exiles | Opened EX-Vault 1360 | -10/Exiles | Found AWS/Thermal 1384 | -10/Exiles | Warned to stay clear of 0b10 Research branches 1420 | -10/Exiles | Met EX-DEC 1426 | -10/Exiles | Learned location of Zion (-7) 1486 | -10/Exiles | Discovered new exit (range 10) 1495 | -10/Exiles | Left Exiles lab with AWS/Thermal 1495 | -10/Exiles | Entered Mines 1500 | -9/Mines | Learned location of Storage (-7) 1592 | -9/Mines | Received a Rocket Launcher from a helpful Derelict 1724 | -9/Mines | Assisted by bots powering up and referring to "LRC-V3" 2228 | -9/Mines | Discovered new exit (range 10) 2251 | -9/Mines | Entered Materials 2251 | -8/Materials | Accompanied by 3 allies 2251 | -8/Materials | Evolved 4 slots: Propulsion x2, Utility x2 2409 | -8/Materials | Lost 3 allies 2713 | -8/Materials | Build established: Scavenger-Mutant 2827 | -8/Materials | Lost 4 parts (2n1u1w) 3002 | -8/Materials | Discovered new exit (range 16) 3585 | -8/Materials | Garrison activated, responded to threat 3869 | -8/Materials | Destroyed 9 combat bots 3902 | -8/Materials | Identified exit to Garrison 3902 | -8/Materials | Hacking Suite fried by hacking feedback 3904 | -8/Materials | Entered Garrison 3944 | -8/Garrison | AWS/Thermal suddenly broke down 4384 | -8/Garrison | Triggered checkpoint 4560 | -8/Garrison | Discovered new exit (range 15) 4798 | -8/Garrison | Triggered checkpoint 4929 | -8/Garrison | Lost 3 parts (1p2u) 4959 | -8/Garrison | Core integrity fell below 50% 5258 | -8/Garrison | Installed Relay Interface Framework 5521 | -8/Garrison | Entered Materials 5913 | -8/Materials | Discovered new exit (range 15) 6354 | -8/Materials | Entered Factory 6354 | -7/Factory | Evolved 2 slots: Utility x2 7375 | -7/Factory | Identified exit to Storage 7375 | -7/Factory | Identified exit to Lower Caves 7483 | -7/Factory | Entered Storage 7714 | -7/Storage | Garrison activated, responded to threat 7772 | -7/Storage | Lost 4 parts (1p3n) 7882 | -7/Storage | Assisted by bots powering up and referring to "LRC-V3" 7890 | -7/Storage | Used back door to open Recycling access 7890 | -7/Storage | Discovered new exit (range 4) 7908 | -7/Storage | Entered Recycling 7908 | -7/Recycling | Accompanied by 10 allies 8161 | -7/Recycling | Scanned before Scraplab entrance 8170 | -7/Recycling | Build established: Commander-Mutant 8219 | -7/Recycling | Entered Scraplab 8231 | -7/Recycling | Discovered new exit (range 3) 8250 | -7/Recycling | Entered Scraptown 8250 | -7/Scraptown | Accompanied by 9 allies 8250 | -7/Scraptown | System corruption cleaned by C-Scrubber 8626 | -7/Scraptown | Discovered new exit (range 5) 8740 | -7/Scraptown | Visited Symbiants 8767 | -7/Scraptown | Visited The Evicted 8785 | -7/Scraptown | Visited Awakened 8802 | -7/Scraptown | Visited Cave Peace 9195 | -7/Scraptown | Visited Comm Corps 9304 | -7/Scraptown | Visited Shadow of the Wyrm 9341 | -7/Scraptown | Visited Junk Repository 9390 | -7/Scraptown | Turned away by UFD registrar 9390 | -7/Scraptown | Turned away by UFD registrar 9762 | -7/Scraptown | Entered Factory 9762 | -5/Factory | Accompanied by 9 allies 9762 | -5/Factory | Evolved 4 slots: Propulsion x1, Utility x3 9801 | -5/Factory | Identified exit to Upper Caves 9801 | -5/Factory | Identified exit to Extension 10085 | -5/Factory | Discovered new exit (range 10) 10085 | -5/Factory | Entered Upper Caves 10163 | -5/Upper Caves | Build established: Hacker-Sprinter 10207 | -5/Upper Caves | Spotted B-75 Beast 10230 | -5/Upper Caves | Learned 4 Factory zone layouts 10249 | -5/Upper Caves | Discovered new exit (range 11) 10251 | -5/Upper Caves | Identified exit to Upper Caves 10252 | -5/Upper Caves | Entered another Upper Caves area 10872 | -5/Upper Caves | Entered an active Warlord outpost 10880 | -5/Upper Caves | Discovered new exit (range 12) 10913 | -5/Upper Caves | Identified exit to Warlord 10914 | -5/Upper Caves | Entered Warlord 10922 | -5/Warlord | Discovered new exit (range 8) 10924 | -5/Warlord | Identified exit to Proximity Caves 10924 | -5/Warlord | Entered Proximity Caves 11184 | -4/Proximity Caves | Discovered new exit (range 6) 11185 | -4/Proximity Caves | Identified exit to Factory 11189 | -4/Proximity Caves | Entered Factory 11189 | -4/Factory | Evolved 2 slots: Propulsion x1, Utility x1 11249 | -4/Factory | Discovered new exit (range 11) 11251 | -4/Factory | Identified exit to Upper Caves 11429 | -4/Factory | Entered Upper Caves 11636 | -4/Upper Caves | Discovered new exit (range 7) 11637 | -4/Upper Caves | Identified exit to Upper Caves 11668 | -4/Upper Caves | Entered another Upper Caves area 11674 | -4/Upper Caves | Encountered a Warlord checkpoint 11689 | -4/Upper Caves | Learned location of Quarantine (-2) 11724 | -4/Upper Caves | Build established: Wizard-Sprinter 11770 | -4/Upper Caves | Spotted B-86 Titan 11859 | -4/Upper Caves | Discovered new exit (range 10) 11861 | -4/Upper Caves | Identified exit to Zhirov 11861 | -4/Upper Caves | Entered Zhirov 11861 | -4/Zhirov | Discovered new exit (range 3) 11866 | -4/Zhirov | Met Zhirov 11871 | -4/Zhirov | Learned location of Testing (-3) 11871 | -4/Zhirov | Learned location of Command (-1) 11875 | -4/Zhirov | Zhirov requested help retrieving the SGEMP Prototype 11880 | -4/Zhirov | Found Alien Artifact 11880 | -4/Zhirov | Identified Integrated Dissipator 11880 | -4/Zhirov | Installed Integrated Dissipator, increased core heat dissipation (+20) 11936 | -4/Zhirov | Identified exit to Proximity Caves 11936 | -4/Zhirov | Entered Proximity Caves 12005 | -3/Proximity Caves | Encountered a Derelict sapper outpost 12076 | -3/Proximity Caves | Discovered new exit (range 6) 12077 | -3/Proximity Caves | Identified exit to Research 12080 | -3/Proximity Caves | Entered Research 12080 | -3/Research | Evolved 2 slots: Power x1, Utility x1 12081 | -3/Research | Identified exit to Testing 12100 | -3/Research | Identified exit to Research 12314 | -3/Research | Local machine network offline 12379 | -3/Research | Spotted B-86 Titan 12433 | -3/Research | Entered another Research area 12433 | -2/Research | Evolved 2 slots: Propulsion x1, Utility x1 12477 | -2/Research | Lost 4 parts (2n1u1w) 12544 | -2/Research | Fabricated Lgt. Quantum Reactor? 12621 | -2/Research | Spotted B-90 Cyclops 12658 | -2/Research | Lost 3 parts (1p1n1u) 12702 | -2/Research | Identified exit to Access 12718 | -2/Research | Fabricated Cld. Q-thruster? 12737 | -2/Research | Lost 9 parts (1p6n2u) 12760 | -2/Research | Spotted B-90 Cyclops 12765 | -2/Research | Entered Access 12765 | -1/Access | Evolved 2 slots: Propulsion x2 12789 | -1/Access | Lost 7 parts (1p2n3u1w) 12902 | -1/Access | Spotted B-99 Colossus 12911 | -1/Access | Identified exit to Command 12995 | -1/Access | Spotted B-99 Colossus 13002 | -1/Access | Build established: Hacker-Mutant 13261 | -1/Access | Core integrity fell below 50% 13292 | -1/Access | Spotted B-99 Colossus 13304 | -1/Access | Core integrity fell below 20% 13321 | -1/Access | Self-destructed Last Messages --------------- Connecting with Terminal... ALERT: Suspicious activity at Terminal A003. Dispatching Investigation squad. Slug penetrates Wall. Drone sends a signal. Penetrated by Slug. P-80 Master resets P-80 Master, system corruption cleaned. Penetrated by Slug. Slug penetrates Wall. Penetrated by Slug. Detecting nearby Garrison Access. Triggered Blade Trap. Massive razor-sharp blades shoot up from within the floor. Imp. Signal Interpreter severed. Hacking Suite severed. Triggered Blade Trap. Massive razor-sharp blades shoot up from within the floor. Map ----- +----------------------------------------------------+ | ??????????????????????????????#######???##+###### | | ??????????????????????????????# ???# #????? | | ??????????????????????????????# ?### ###??? | | ??????????????????????????????# # =#### | | ??????????????????????????????# # " | | ??????????????????????????????# + "T | | ??????????????????????????????# # | | ??????????????????????????????# = # #### | | ??????????????????????????????# ?#######??? | | ??????????????????????????????# ??????????? | | ??????????????????????????????#######???????????? | | ????????????????????????????????????????????????? | | ????????????????????????????????????????????????? | | ????????????????????????????????????????????????? | | ????????????????????????????????????????????????? | | ????????????????????????????????????????????????? | | ????????????????????????????????????????????????? | | ???????????????###########??????????????????????? | | ???????????????# #??????????????????????? | | ???????????????# #??????????????????????? | | ???????????????# " #??????????????????????? | | ???????????????# """ #??????????????????????? | | ???????????????# """ #??????????????????????? | | ???????????????# " #??????????????????????? | | ???????????????# ! #??????????????????????? | | ???????????????# @#??????????????????????? | | ???????????????#####+############???????????????? | | ???????????????????# ## #???????????????? | | ???????????????????# ## #???????????????? | | ???????????????????# ## #????????#######? | | ???????????????????#p##!// #???????? ?? | | ???????????????????# ##!/ #??????? ??? | | ???????????????????#p##// #??????? ???? | | ???????????????????# #?? ! #?????? ""???? | | ???????????????????#p#???? ???????? "????? | | ???????????????????# #######+########? """""??? | | ???????????????????# #? """"""?? | | ???????????????????# # "" ?? | | ???????????????????# ############ # "" | | ???????????????????# #??????? ?#h + | | ???????????????????# #???????? ?# # | | ???????????????????# #???????? # # | | ???????????????????# #????????? # #?####"###### | | ???????????????????+ #??????????+ #???# | | ???????????????????# #??????????# #???# | | ???????????????????# #??????????# #???# | | ???????????????????# #??????????# #???# | | ???????????????????+ +??????????# #???# "# | | ???????????????????###???????????# #???# #? | | ?????????????????????????????????# ##### #? | +----------------------------------------------------+ Best States ------------- Heat Dissipation 72 Energy Generation 37 Energy Capacity 340 Matter Stores 300 Matter Capacity 300 Sight Range 16 Robot Scan Range 16 Terrain Scan Density 10 Armor Coverage 675 Propulsion Shielding 66 Weapon Shielding 66 Evasion (%) 73 Recoil Reduction 4 Matter Filtering 50 Offensive Hacking 64 Defensive Hacking 24 Item Schematics ----------------- Assault Drone Bay | -4/Zhirov | Free Exp. Heat Sink | -4/Zhirov | Free Exp. Optical Array | -4/Zhirov | Free Imp. Arc Thrower | -4/Zhirov | Free Robot Schematics ------------------ None Fabricated ------------ Lgt. Quantum Reactor | x2 | -2/Research | Preloaded Cld. Q-thruster | x1 | -2/Research | Preloaded Repaired ---------- Nothing Alien Tech Used ----------------- Integrated Dissipator Achievements -------------- None Challenges ------------ None Game ------ Seed SmartBlastSlayer Manual? 0 Play Time 02:13:50 Cumulative 162.1 hours Start 2025.08.30 @ 19:21:21 End 2025.08.30 @ 22:20:06 Sessions 5 Manual Loads 0 Difficulty Rogue Special Mode None Game No. 143 Rogue 143 Adventurer 0 Explorer 0 Win Type - Total 7 Types 2/0/2/2/0/0/0/0/0/1 Lore% 85 Gallery% 80 Achievement% 60 Wizard Run 0 Options --------- Layout 1 ASCII 0 Keyboard 0 Movement Numpad Keybinds 0 Fullscreen 1 Font 24/Proggy Map View 50x35 Zoom Use 0% Tactical HUD 0 Map Filters NONE Filters NONE Steam 1 RUN: 7c863925-95e9-4bad-a8b5-4257883039ee